{"text_format":"1","workbook":"xlsx","n_sheets":5,"sheets":["Customer Info & Signature","IRR Tool","Support","Facility Information","Terms and Conditions"],"not_rendered":{"charts":0,"images":1,"macros":1,"external_links":0,"defined_names":12,"comments":0,"pivot_tables":0},"unopened":[],"bounds":{"document_bytes":16777216,"sheet_cells":100000,"rows_first":2000,"rows_last":500,"rows_between":2000,"halvings":0,"cell_chars":16384,"cell_head_chars":4096},"cells_cut":0,"cells_raw":0,"read":"whole","date_system":"1900"}

{"sheet":"Customer Info & Signature","index":0,"n_rows":44,"n_cols":6,"rows_kept":44,"cut":false,"hidden":false,"merged":[[31,0,31,5],[11,0,11,2],[10,4,10,5],[24,0,24,5],[25,0,25,5],[19,3,19,5],[23,0,23,2],[22,0,22,2],[23,3,23,5],[22,3,22,5],[19,0,19,2],[20,0,20,2],[20,3,20,5],[11,4,11,5],[26,0,26,5],[27,0,27,5],[32,0,38,5],[39,0,39,5],[7,0,7,5],[9,0,9,5],[13,0,13,1],[14,0,14,1],[28,0,28,5],[13,2,13,3],[14,2,14,3],[17,0,17,2],[16,0,16,2],[17,3,17,5],[16,3,16,5],[8,0,8,5],[10,0,10,2],[29,0,30,5]]}
[]
[]
[]
[]
[]
[]
[]
["LARGE ENERGY USER PROGRAM"]
["Pre-Qualification Application      July 1, 2017 - June 30, 2018"]
["Customer Information"]
["Company/Entity Name",null,null,"Number of Buildings","Federal Tax ID # "]
[]
[]
["Mailing Address",null,"City",null,"State","ZIP"]
[]
[]
["Primary Contact Person Name",null,null,"Email Address"]
[]
[]
["Telephone Number",null,null,"Fax Number"]
[]
[]
["How did you hear about the program? (See above)",null,null,"Entity NAICS Code"]
[]
["Submission Instructions & Requirements  These requirements are in addition to the Program Terms and Conditions"]
["1. Please submit all completed and signed applications to the address below through one of the media described below. Enrollment applications will be received on a first-come, first-served basis dependent upon program funding.\n2. A complete application package should include: completed and signed application, fully completed 'Facility Information' table on page 2 of this application, and fiscal year 2017 (July 2016 through June 2017) monthly utility summaries. \n3. If more space is required on the 'Facility Information' table, the customer may submit additional pages to the application to provide the data electronically utilizing the same column format. Monthly utility summaries may be submitted electronically (MS Excel Preferred). Electronic application submissions with attachments under 5MB total may be sent via email to LEUP@njcleanenergy.com. \n4. All energy usage and other data must be for the 12 monthly utility bills received in fiscal year 2017 (July 2016 through June 2017) ONLY. Total kWh, peak KW and therm usage figures will be found on monthly utility invoices provided by your electric and gas supplier. \n5. The total fiscal year NJ Clean Energy Program contribution calculation is calculated as follows - ($0.025905/therm X Total Facility Therm Usage + $0.003437/kWh X Total Facility kWh Usage), as found on the 'Facility Information' table on page 2 of this application. \n6. Eligible entities must have contributed a minimum of $200,000 into NJ Clean Energy Program fund in fiscal year 2017 (July 2016 through June 2017) (aggregate of all buildings/sites) as described in number 5 above. Approved entities will be instructed to submit their Draft Energy Efficiency Plan (DEEP) for review and fund reservation. To be considered for incentives, the average billed peak demand of all facilities submitted in the DEEP must meet or exceed 400kW and/or 4,000 DTh. Entities may choose to skip the DEEP submission and choose to submit the Final Energy Efficiency Plan (FEEP) for funding commitment. In order to be considered for incentives, the average billed peak demand of all facilities submitted in the Final Energy Efficiency Plan (FEEP) must meet or exceed 400 kW and/or 4,000 DTh.\n7. Notwithstanding the above references to one year of utility summaries, entities must submit two years, not just one year, of monthly utility summaries if they choose to utilize the option of banking their contributions in order to increase one of the ways their maximum incentive per entity is calculated, all as described in more detail below under “Optional:  Increasing Maximum Incentive by Banking.”\n"]
["Optional: Increasing Maximum Incentive by Banking"]
["Entities have the option of applying to bank two consecutive years of their total fiscal year NJ Clean Energy Program contributions in order to increase one of the ways their maximum incentive per entity is calculated, i.e., the one calculated as 90% of NJCEP fund contributions. In order to apply to exercise that option, entities (i) cannot have been awarded their maximum incentive commitment in the fiscal year 2017 LEU program and (ii) must submit fiscal year 2016 monthly utility summaries (July 2015 through June 2016) in addition to the fiscal year 2017 summaries described above at “Submission Instructions and Requirements”. If these conditions are met, the above-described maximum incentive can be calculated by combining the fiscal year 2018 maximum with the un-awarded portion of the fiscal year 2017 maximum. For the avoidance of doubt, banking of contributions to meet the minimum contribution threshold of $200,000 (Item 6 above at “Submission Instructions and Requirements”) is not permitted."]
["Acknowledgement"]
[]
[]
["Customer's Signature"]
["By signing, I certify that I have read, understand and agree to the specific Program Requirements/Terms and Conditions listed on this application form. I will also submit for approval a properly completed application package, which includes this signed application as defined requirement (2) of this application. Depending on the completeness and quality of the data provided, additional information may be needed and will be requested by the Program Manager. Projects with a contract threshold of $15,444 are required to pay no less than prevailing wage rate to workers employed in the performance of any construction undertaken in connection with Board of Public Utilities financial assistance, or undertaken to fulfill any condition of receiving Board of Public Utilities financial assistance, including the performance of any contract to construct, renovate or otherwise prepare a facility, the operations of which are necessary for the receipt of Board of Public Utilities financial assistance. By submitting this application, or accepting program incentives, applicant agrees to adhere to New Jersey Prevailing Wage requirements, as applicable."]
[]
[]
[]
[]
[]
[]
["Mail, Fax or Email your signed application package DIRECTLY to the Commercial/Industrial Program Manager."]
[null,"New Jersey's Clean Energy Program"]
[null,"c/o TRC Energy Services",null,null,"Phone: (866) 657-6278"]
[null,"900 Route 9 North, Suite 404",null,null,"Fax: (732) 855-0422"]
[null,"Woodbridge, NJ 07095",null,null,"Email: LEUP@NJCleanEnergy.com"]

{"sheet":"IRR Tool","index":1,"n_rows":4,"n_cols":46,"rows_kept":4,"cut":false,"hidden":true,"merged":[]}
["Cost for IRR",{"$f":"#REF!-#REF!","v":{"$error":"#REF!"}}]
["Measure Life",{"$f":"#REF!","v":{"$error":"#REF!"}},null,"Year",0,1,2,3,4,5,6,7,8,9,10,11,12,13,14,15,16,17,18,19,20,21,22,23,24,25,26,27,28,29,30,31,32,33,34,35,36,37,38,39,40,"R Est"]
["Annual Cost Savings",{"$f":"#REF!+#REF!","v":{"$error":"#REF!"}},null,"Cash Flow",{"$f":"-B1","v":{"$error":"#REF!"}},{"$f":"$B$3","v":{"$error":"#REF!"}},{"$f":"IF(COUNTIF(F3,$B$3)<$B$2,$B$3,0)","v":{"$error":"#REF!"}},{"$f":"IF(COUNTIF($F$3:G3,$B$3)<$B$2,$B$3,0)","v":{"$error":"#REF!"}},{"$f":"IF(COUNTIF($F$3:H3,$B$3)<$B$2,$B$3,0)","v":{"$error":"#REF!"}},{"$f":"IF(COUNTIF($F$3:I3,$B$3)<$B$2,$B$3,0)","v":{"$error":"#REF!"}},{"$f":"IF(COUNTIF($F$3:J3,$B$3)<$B$2,$B$3,0)","v":{"$error":"#REF!"}},{"$f":"IF(COUNTIF($F$3:K3,$B$3)<$B$2,$B$3,0)","v":{"$error":"#REF!"}},{"$f":"IF(COUNTIF($F$3:L3,$B$3)<$B$2,$B$3,0)","v":{"$error":"#REF!"}},{"$f":"IF(COUNTIF($F$3:M3,$B$3)<$B$2,$B$3,0)","v":{"$error":"#REF!"}},{"$f":"IF(COUNTIF($F$3:N3,$B$3)<$B$2,$B$3,0)","v":{"$error":"#REF!"}},{"$f":"IF(COUNTIF($F$3:O3,$B$3)<$B$2,$B$3,0)","v":{"$error":"#REF!"}},{"$f":"IF(COUNTIF($F$3:P3,$B$3)<$B$2,$B$3,0)","v":{"$error":"#REF!"}},{"$f":"IF(COUNTIF($F$3:Q3,$B$3)<$B$2,$B$3,0)","v":{"$error":"#REF!"}},{"$f":"IF(COUNTIF($F$3:R3,$B$3)<$B$2,$B$3,0)","v":{"$error":"#REF!"}},{"$f":"IF(COUNTIF($F$3:S3,$B$3)<$B$2,$B$3,0)","v":{"$error":"#REF!"}},{"$f":"IF(COUNTIF($F$3:T3,$B$3)<$B$2,$B$3,0)","v":{"$error":"#REF!"}},{"$f":"IF(COUNTIF($F$3:U3,$B$3)<$B$2,$B$3,0)","v":{"$error":"#REF!"}},{"$f":"IF(COUNTIF($F$3:V3,$B$3)<$B$2,$B$3,0)","v":{"$error":"#REF!"}},{"$f":"IF(COUNTIF($F$3:W3,$B$3)<$B$2,$B$3,0)","v":{"$error":"#REF!"}},{"$f":"IF(COUNTIF($F$3:X3,$B$3)<$B$2,$B$3,0)","v":{"$error":"#REF!"}},{"$f":"IF(COUNTIF($F$3:Y3,$B$3)<$B$2,$B$3,0)","v":{"$error":"#REF!"}},{"$f":"IF(COUNTIF($F$3:Z3,$B$3)<$B$2,$B$3,0)","v":{"$error":"#REF!"}},{"$f":"IF(COUNTIF($F$3:AA3,$B$3)<$B$2,$B$3,0)","v":{"$error":"#REF!"}},{"$f":"IF(COUNTIF($F$3:AB3,$B$3)<$B$2,$B$3,0)","v":{"$error":"#REF!"}},{"$f":"IF(COUNTIF($F$3:AC3,$B$3)<$B$2,$B$3,0)","v":{"$error":"#REF!"}},{"$f":"IF(COUNTIF($F$3:AD3,$B$3)<$B$2,$B$3,0)","v":{"$error":"#REF!"}},{"$f":"IF(COUNTIF($F$3:AE3,$B$3)<$B$2,$B$3,0)","v":{"$error":"#REF!"}},{"$f":"IF(COUNTIF($F$3:AF3,$B$3)<$B$2,$B$3,0)","v":{"$error":"#REF!"}},{"$f":"IF(COUNTIF($F$3:AG3,$B$3)<$B$2,$B$3,0)","v":{"$error":"#REF!"}},{"$f":"IF(COUNTIF($F$3:AH3,$B$3)<$B$2,$B$3,0)","v":{"$error":"#REF!"}},{"$f":"IF(COUNTIF($F$3:AI3,$B$3)<$B$2,$B$3,0)","v":{"$error":"#REF!"}},{"$f":"IF(COUNTIF($F$3:AJ3,$B$3)<$B$2,$B$3,0)","v":{"$error":"#REF!"}},{"$f":"IF(COUNTIF($F$3:AK3,$B$3)<$B$2,$B$3,0)","v":{"$error":"#REF!"}},{"$f":"IF(COUNTIF($F$3:AL3,$B$3)<$B$2,$B$3,0)","v":{"$error":"#REF!"}},{"$f":"IF(COUNTIF($F$3:AM3,$B$3)<$B$2,$B$3,0)","v":{"$error":"#REF!"}},{"$f":"IF(COUNTIF($F$3:AN3,$B$3)<$B$2,$B$3,0)","v":{"$error":"#REF!"}},{"$f":"IF(COUNTIF($F$3:AO3,$B$3)<$B$2,$B$3,0)","v":{"$error":"#REF!"}},{"$f":"IF(COUNTIF($F$3:AP3,$B$3)<$B$2,$B$3,0)","v":{"$error":"#REF!"}},{"$f":"IF(COUNTIF($F$3:AQ3,$B$3)<$B$2,$B$3,0)","v":{"$error":"#REF!"}},{"$f":"IF(COUNTIF($F$3:AR3,$B$3)<$B$2,$B$3,0)","v":{"$error":"#REF!"}},{"$f":"IF($B$3*$B$2>($B$1),0.3,-0.3)","v":{"$error":"#REF!"}}]
["IRR",{"$f":"IF(OR(B1=0,B2=0,B3=0),0,IRR(E3:AS3,AT3))","v":{"$error":"#REF!"}}]

{"sheet":"Support","index":2,"n_rows":9,"n_cols":7,"rows_kept":9,"cut":false,"hidden":true,"merged":[]}
["Building Type","Incorporated","Payee","Electric Utility","Gas Utility","Tech Code","Measure Life"]
["Hospital","Yes","Customer","Atlantic City Electric","South Jersey Gas","L",15]
["Industrial","No","Contractor","PSE&G","New Jersey Natural Gas","HVAC",15]
["Municipality","Other","Other","Rockland Electric Co.","Elizabethtown Gas","AMC",15]
["Office",null,null,"Jersey Central P&L","PSE&G","R",10]
["Retail",null,null,null,null,"WHR",18]
["School",null,null,null,null,"Other","-"]
["State"]
["Other"]

{"sheet":"Facility Information","index":3,"n_rows":503,"n_cols":13,"rows_kept":503,"cut":false,"hidden":false,"merged":[[0,1,0,12]]}
[null,"Facility Information"]
[null,"Business Name \n(if different from above)","Street Address","City","State","Zip Code","Utility Company (Including 3rd party if applicable)","Account Number","Loc ID","(A) Total kWh","Peak kW","(B) Total Therms","NJCEP Contribution ($) = (A) x ($0.003437) + (B) x ($0.025905)"]
["Ex","ABC Manufacturing","123 Any Street","Anytown","NJ",12345,"PSE&G",55555555555,365,100000000,2500,20000000,{"$f":"IF(AND(J3=\"\",L3=\"\"),\"\",J3*0.003437+L3*0.025905)","v":861800}]
[1,null,null,null,null,null,null,null,null,null,null,null,{"$f":"IF(AND(J4=\"\",L4=\"\"),\"\",J4*0.003437+L4*0.025905)","v":""}]
[2,null,null,null,null,null,null,null,null,null,null,null,{"$f":"IF(AND(J5=\"\",L5=\"\"),\"\",J5*0.003437+L5*0.025905)","v":""}]
[3,null,null,null,null,null,null,null,null,null,null,null,""]
[4,null,null,null,null,null,null,null,null,null,null,null,""]
[5,null,null,null,null,null,null,null,null,null,null,null,""]
[6,null,null,null,null,null,null,null,null,null,null,null,""]
[7,null,null,null,null,null,null,null,null,null,null,null,""]
[8,null,null,null,null,null,null,null,null,null,null,null,""]
[9,null,null,null,null,null,null,null,null,null,null,null,""]
[10,null,null,null,null,null,null,null,null,null,null,null,""]
[11,null,null,null,null,null,null,null,null,null,null,null,""]
[12,null,null,null,null,null,null,null,null,null,null,null,""]
[13,null,null,null,null,null,null,null,null,null,null,null,""]
[14,null,null,null,null,null,null,null,null,null,null,null,""]
[15,null,null,null,null,null,null,null,null,null,null,null,""]
[16,null,null,null,null,null,null,null,null,null,null,null,""]
[17,null,null,null,null,null,null,null,null,null,null,null,""]
[18,null,null,null,null,null,null,null,null,null,null,null,""]
[19,null,null,null,null,null,null,null,null,null,null,null,""]
[20,null,null,null,null,null,null,null,null,null,null,null,""]
[21,null,null,null,null,null,null,null,null,null,null,null,""]
[22,null,null,null,null,null,null,null,null,null,null,null,""]
[23,null,null,null,null,null,null,null,null,null,null,null,""]
[24,null,null,null,null,null,null,null,null,null,null,null,""]
[25,null,null,null,null,null,null,null,null,null,null,null,""]
[26,null,null,null,null,null,null,null,null,null,null,null,""]
[27,null,null,null,null,null,null,null,null,null,null,null,""]
[28,null,null,null,null,null,null,null,null,null,null,null,""]
[29,null,null,null,null,null,null,null,null,null,null,null,""]
[30,null,null,null,null,null,null,null,null,null,null,null,""]
[31,null,null,null,null,null,null,null,null,null,null,null,""]
[32,null,null,null,null,null,null,null,null,null,null,null,""]
[33,null,null,null,null,null,null,null,null,null,null,null,""]
[34,null,null,null,null,null,null,null,null,null,null,null,""]
[35,null,null,null,null,null,null,null,null,null,null,null,""]
[36,null,null,null,null,null,null,null,null,null,null,null,""]
[37,null,null,null,null,null,null,null,null,null,null,null,""]
[38,null,null,null,null,null,null,null,null,null,null,null,""]
[39,null,null,null,null,null,null,null,null,null,null,null,""]
[40,null,null,null,null,null,null,null,null,null,null,null,""]
[41,null,null,null,null,null,null,null,null,null,null,null,""]
[42,null,null,null,null,null,null,null,null,null,null,null,""]
[43,null,null,null,null,null,null,null,null,null,null,null,""]
[44,null,null,null,null,null,null,null,null,null,null,null,""]
[45,null,null,null,null,null,null,null,null,null,null,null,""]
[46,null,null,null,null,null,null,null,null,null,null,null,""]
[47,null,null,null,null,null,null,null,null,null,null,null,""]
[48,null,null,null,null,null,null,null,null,null,null,null,""]
[49,null,null,null,null,null,null,null,null,null,null,null,""]
[50,null,null,null,null,null,null,null,null,null,null,null,""]
[51,null,null,null,null,null,null,null,null,null,null,null,""]
[52,null,null,null,null,null,null,null,null,null,null,null,""]
[53,null,null,null,null,null,null,null,null,null,null,null,""]
[54,null,null,null,null,null,null,null,null,null,null,null,""]
[55,null,null,null,null,null,null,null,null,null,null,null,""]
[56,null,null,null,null,null,null,null,null,null,null,null,""]
[57,null,null,null,null,null,null,null,null,null,null,null,""]
[58,null,null,null,null,null,null,null,null,null,null,null,""]
[59,null,null,null,null,null,null,null,null,null,null,null,""]
[60,null,null,null,null,null,null,null,null,null,null,null,""]
[61,null,null,null,null,null,null,null,null,null,null,null,""]
[62,null,null,null,null,null,null,null,null,null,null,null,""]
[63,null,null,null,null,null,null,null,null,null,null,null,""]
[64,null,null,null,null,null,null,null,null,null,null,null,""]
[65,null,null,null,null,null,null,null,null,null,null,null,""]
[66,null,null,null,null,null,null,null,null,null,null,null,{"$f":"IF(AND(J69=\"\",L69=\"\"),\"\",J69*0.003437+L69*0.025905)","v":""}]
[67,null,null,null,null,null,null,null,null,null,null,null,""]
[68,null,null,null,null,null,null,null,null,null,null,null,""]
[69,null,null,null,null,null,null,null,null,null,null,null,""]
[70,null,null,null,null,null,null,null,null,null,null,null,""]
[71,null,null,null,null,null,null,null,null,null,null,null,""]
[72,null,null,null,null,null,null,null,null,null,null,null,""]
[73,null,null,null,null,null,null,null,null,null,null,null,""]
[74,null,null,null,null,null,null,null,null,null,null,null,""]
[75,null,null,null,null,null,null,null,null,null,null,null,""]
[76,null,null,null,null,null,null,null,null,null,null,null,""]
[77,null,null,null,null,null,null,null,null,null,null,null,""]
[78,null,null,null,null,null,null,null,null,null,null,null,""]
[79,null,null,null,null,null,null,null,null,null,null,null,""]
[80,null,null,null,null,null,null,null,null,null,null,null,""]
[81,null,null,null,null,null,null,null,null,null,null,null,""]
[82,null,null,null,null,null,null,null,null,null,null,null,""]
[83,null,null,null,null,null,null,null,null,null,null,null,""]
[84,null,null,null,null,null,null,null,null,null,null,null,""]
[85,null,null,null,null,null,null,null,null,null,null,null,""]
[86,null,null,null,null,null,null,null,null,null,null,null,""]
[87,null,null,null,null,null,null,null,null,null,null,null,""]
[88,null,null,null,null,null,null,null,null,null,null,null,""]
[89,null,null,null,null,null,null,null,null,null,null,null,""]
[90,null,null,null,null,null,null,null,null,null,null,null,""]
[91,null,null,null,null,null,null,null,null,null,null,null,""]
[92,null,null,null,null,null,null,null,null,null,null,null,""]
[93,null,null,null,null,null,null,null,null,null,null,null,""]
[94,null,null,null,null,null,null,null,null,null,null,null,""]
[95,null,null,null,null,null,null,null,null,null,null,null,""]
[96,null,null,null,null,null,null,null,null,null,null,null,""]
[97,null,null,null,null,null,null,null,null,null,null,null,""]
[98,null,null,null,null,null,null,null,null,null,null,null,""]
[99,null,null,null,null,null,null,null,null,null,null,null,""]
[100,null,null,null,null,null,null,null,null,null,null,null,""]
[101,null,null,null,null,null,null,null,null,null,null,null,""]
[102,null,null,null,null,null,null,null,null,null,null,null,""]
[103,null,null,null,null,null,null,null,null,null,null,null,""]
[104,null,null,null,null,null,null,null,null,null,null,null,""]
[105,null,null,null,null,null,null,null,null,null,null,null,""]
[106,null,null,null,null,null,null,null,null,null,null,null,""]
[107,null,null,null,null,null,null,null,null,null,null,null,""]
[108,null,null,null,null,null,null,null,null,null,null,null,""]
[109,null,null,null,null,null,null,null,null,null,null,null,""]
[110,null,null,null,null,null,null,null,null,null,null,null,""]
[111,null,null,null,null,null,null,null,null,null,null,null,""]
[112,null,null,null,null,null,null,null,null,null,null,null,""]
[113,null,null,null,null,null,null,null,null,null,null,null,""]
[114,null,null,null,null,null,null,null,null,null,null,null,""]
[115,null,null,null,null,null,null,null,null,null,null,null,""]
[116,null,null,null,null,null,null,null,null,null,null,null,""]
[117,null,null,null,null,null,null,null,null,null,null,null,""]
[118,null,null,null,null,null,null,null,null,null,null,null,""]
[119,null,null,null,null,null,null,null,null,null,null,null,""]
[120,null,null,null,null,null,null,null,null,null,null,null,""]
[121,null,null,null,null,null,null,null,null,null,null,null,""]
[122,null,null,null,null,null,null,null,null,null,null,null,""]
[123,null,null,null,null,null,null,null,null,null,null,null,""]
[124,null,null,null,null,null,null,null,null,null,null,null,""]
[125,null,null,null,null,null,null,null,null,null,null,null,""]
[126,null,null,null,null,null,null,null,null,null,null,null,""]
[127,null,null,null,null,null,null,null,null,null,null,null,""]
[128,null,null,null,null,null,null,null,null,null,null,null,""]
[129,null,null,null,null,null,null,null,null,null,null,null,""]
[130,null,null,null,null,null,null,null,null,null,null,null,{"$f":"IF(AND(J133=\"\",L133=\"\"),\"\",J133*0.003437+L133*0.025905)","v":""}]
[131,null,null,null,null,null,null,null,null,null,null,null,""]
[132,null,null,null,null,null,null,null,null,null,null,null,""]
[133,null,null,null,null,null,null,null,null,null,null,null,""]
[134,null,null,null,null,null,null,null,null,null,null,null,""]
[135,null,null,null,null,null,null,null,null,null,null,null,""]
[136,null,null,null,null,null,null,null,null,null,null,null,""]
[137,null,null,null,null,null,null,null,null,null,null,null,""]
[138,null,null,null,null,null,null,null,null,null,null,null,""]
[139,null,null,null,null,null,null,null,null,null,null,null,""]
[140,null,null,null,null,null,null,null,null,null,null,null,""]
[141,null,null,null,null,null,null,null,null,null,null,null,""]
[142,null,null,null,null,null,null,null,null,null,null,null,""]
[143,null,null,null,null,null,null,null,null,null,null,null,""]
[144,null,null,null,null,null,null,null,null,null,null,null,""]
[145,null,null,null,null,null,null,null,null,null,null,null,""]
[146,null,null,null,null,null,null,null,null,null,null,null,""]
[147,null,null,null,null,null,null,null,null,null,null,null,""]
[148,null,null,null,null,null,null,null,null,null,null,null,""]
[149,null,null,null,null,null,null,null,null,null,null,null,""]
[150,null,null,null,null,null,null,null,null,null,null,null,""]
[151,null,null,null,null,null,null,null,null,null,null,null,""]
[152,null,null,null,null,null,null,null,null,null,null,null,""]
[153,null,null,null,null,null,null,null,null,null,null,null,""]
[154,null,null,null,null,null,null,null,null,null,null,null,""]
[155,null,null,null,null,null,null,null,null,null,null,null,""]
[156,null,null,null,null,null,null,null,null,null,null,null,""]
[157,null,null,null,null,null,null,null,null,null,null,null,""]
[158,null,null,null,null,null,null,null,null,null,null,null,""]
[159,null,null,null,null,null,null,null,null,null,null,null,""]
[160,null,null,null,null,null,null,null,null,null,null,null,""]
[161,null,null,null,null,null,null,null,null,null,null,null,""]
[162,null,null,null,null,null,null,null,null,null,null,null,""]
[163,null,null,null,null,null,null,null,null,null,null,null,""]
[164,null,null,null,null,null,null,null,null,null,null,null,""]
[165,null,null,null,null,null,null,null,null,null,null,null,""]
[166,null,null,null,null,null,null,null,null,null,null,null,""]
[167,null,null,null,null,null,null,null,null,null,null,null,""]
[168,null,null,null,null,null,null,null,null,null,null,null,""]
[169,null,null,null,null,null,null,null,null,null,null,null,""]
[170,null,null,null,null,null,null,null,null,null,null,null,""]
[171,null,null,null,null,null,null,null,null,null,null,null,""]
[172,null,null,null,null,null,null,null,null,null,null,null,""]
[173,null,null,null,null,null,null,null,null,null,null,null,""]
[174,null,null,null,null,null,null,null,null,null,null,null,""]
[175,null,null,null,null,null,null,null,null,null,null,null,""]
[176,null,null,null,null,null,null,null,null,null,null,null,""]
[177,null,null,null,null,null,null,null,null,null,null,null,""]
[178,null,null,null,null,null,null,null,null,null,null,null,""]
[179,null,null,null,null,null,null,null,null,null,null,null,""]
[180,null,null,null,null,null,null,null,null,null,null,null,""]
[181,null,null,null,null,null,null,null,null,null,null,null,""]
[182,null,null,null,null,null,null,null,null,null,null,null,""]
[183,null,null,null,null,null,null,null,null,null,null,null,""]
[184,null,null,null,null,null,null,null,null,null,null,null,""]
[185,null,null,null,null,null,null,null,null,null,null,null,""]
[186,null,null,null,null,null,null,null,null,null,null,null,""]
[187,null,null,null,null,null,null,null,null,null,null,null,""]
[188,null,null,null,null,null,null,null,null,null,null,null,""]
[189,null,null,null,null,null,null,null,null,null,null,null,""]
[190,null,null,null,null,null,null,null,null,null,null,null,""]
[191,null,null,null,null,null,null,null,null,null,null,null,""]
[192,null,null,null,null,null,null,null,null,null,null,null,""]
[193,null,null,null,null,null,null,null,null,null,null,null,""]
[194,null,null,null,null,null,null,null,null,null,null,null,{"$f":"IF(AND(J197=\"\",L197=\"\"),\"\",J197*0.003437+L197*0.025905)","v":""}]
[195,null,null,null,null,null,null,null,null,null,null,null,""]
[196,null,null,null,null,null,null,null,null,null,null,null,""]
[197,null,null,null,null,null,null,null,null,null,null,null,""]
[198,null,null,null,null,null,null,null,null,null,null,null,""]
[199,null,null,null,null,null,null,null,null,null,null,null,""]
[200,null,null,null,null,null,null,null,null,null,null,null,""]
[201,null,null,null,null,null,null,null,null,null,null,null,""]
[202,null,null,null,null,null,null,null,null,null,null,null,""]
[203,null,null,null,null,null,null,null,null,null,null,null,""]
[204,null,null,null,null,null,null,null,null,null,null,null,""]
[205,null,null,null,null,null,null,null,null,null,null,null,""]
[206,null,null,null,null,null,null,null,null,null,null,null,""]
[207,null,null,null,null,null,null,null,null,null,null,null,""]
[208,null,null,null,null,null,null,null,null,null,null,null,""]
[209,null,null,null,null,null,null,null,null,null,null,null,""]
[210,null,null,null,null,null,null,null,null,null,null,null,""]
[211,null,null,null,null,null,null,null,null,null,null,null,""]
[212,null,null,null,null,null,null,null,null,null,null,null,""]
[213,null,null,null,null,null,null,null,null,null,null,null,""]
[214,null,null,null,null,null,null,null,null,null,null,null,""]
[215,null,null,null,null,null,null,null,null,null,null,null,""]
[216,null,null,null,null,null,null,null,null,null,null,null,""]
[217,null,null,null,null,null,null,null,null,null,null,null,""]
[218,null,null,null,null,null,null,null,null,null,null,null,""]
[219,null,null,null,null,null,null,null,null,null,null,null,""]
[220,null,null,null,null,null,null,null,null,null,null,null,""]
[221,null,null,null,null,null,null,null,null,null,null,null,""]
[222,null,null,null,null,null,null,null,null,null,null,null,""]
[223,null,null,null,null,null,null,null,null,null,null,null,""]
[224,null,null,null,null,null,null,null,null,null,null,null,""]
[225,null,null,null,null,null,null,null,null,null,null,null,""]
[226,null,null,null,null,null,null,null,null,null,null,null,""]
[227,null,null,null,null,null,null,null,null,null,null,null,""]
[228,null,null,null,null,null,null,null,null,null,null,null,""]
[229,null,null,null,null,null,null,null,null,null,null,null,""]
[230,null,null,null,null,null,null,null,null,null,null,null,""]
[231,null,null,null,null,null,null,null,null,null,null,null,""]
[232,null,null,null,null,null,null,null,null,null,null,null,""]
[233,null,null,null,null,null,null,null,null,null,null,null,""]
[234,null,null,null,null,null,null,null,null,null,null,null,""]
[235,null,null,null,null,null,null,null,null,null,null,null,""]
[236,null,null,null,null,null,null,null,null,null,null,null,""]
[237,null,null,null,null,null,null,null,null,null,null,null,""]
[238,null,null,null,null,null,null,null,null,null,null,null,""]
[239,null,null,null,null,null,null,null,null,null,null,null,""]
[240,null,null,null,null,null,null,null,null,null,null,null,""]
[241,null,null,null,null,null,null,null,null,null,null,null,""]
[242,null,null,null,null,null,null,null,null,null,null,null,""]
[243,null,null,null,null,null,null,null,null,null,null,null,""]
[244,null,null,null,null,null,null,null,null,null,null,null,""]
[245,null,null,null,null,null,null,null,null,null,null,null,""]
[246,null,null,null,null,null,null,null,null,null,null,null,""]
[247,null,null,null,null,null,null,null,null,null,null,null,""]
[248,null,null,null,null,null,null,null,null,null,null,null,""]
[249,null,null,null,null,null,null,null,null,null,null,null,""]
[250,null,null,null,null,null,null,null,null,null,null,null,""]
[251,null,null,null,null,null,null,null,null,null,null,null,""]
[252,null,null,null,null,null,null,null,null,null,null,null,""]
[253,null,null,null,null,null,null,null,null,null,null,null,""]
[254,null,null,null,null,null,null,null,null,null,null,null,""]
[255,null,null,null,null,null,null,null,null,null,null,null,""]
[256,null,null,null,null,null,null,null,null,null,null,null,""]
[257,null,null,null,null,null,null,null,null,null,null,null,""]
[258,null,null,null,null,null,null,null,null,null,null,null,{"$f":"IF(AND(J261=\"\",L261=\"\"),\"\",J261*0.003437+L261*0.025905)","v":""}]
[259,null,null,null,null,null,null,null,null,null,null,null,""]
[260,null,null,null,null,null,null,null,null,null,null,null,""]
[261,null,null,null,null,null,null,null,null,null,null,null,""]
[262,null,null,null,null,null,null,null,null,null,null,null,""]
[263,null,null,null,null,null,null,null,null,null,null,null,""]
[264,null,null,null,null,null,null,null,null,null,null,null,""]
[265,null,null,null,null,null,null,null,null,null,null,null,""]
[266,null,null,null,null,null,null,null,null,null,null,null,""]
[267,null,null,null,null,null,null,null,null,null,null,null,""]
[268,null,null,null,null,null,null,null,null,null,null,null,""]
[269,null,null,null,null,null,null,null,null,null,null,null,""]
[270,null,null,null,null,null,null,null,null,null,null,null,""]
[271,null,null,null,null,null,null,null,null,null,null,null,""]
[272,null,null,null,null,null,null,null,null,null,null,null,""]
[273,null,null,null,null,null,null,null,null,null,null,null,""]
[274,null,null,null,null,null,null,null,null,null,null,null,""]
[275,null,null,null,null,null,null,null,null,null,null,null,""]
[276,null,null,null,null,null,null,null,null,null,null,null,""]
[277,null,null,null,null,null,null,null,null,null,null,null,""]
[278,null,null,null,null,null,null,null,null,null,null,null,""]
[279,null,null,null,null,null,null,null,null,null,null,null,""]
[280,null,null,null,null,null,null,null,null,null,null,null,""]
[281,null,null,null,null,null,null,null,null,null,null,null,""]
[282,null,null,null,null,null,null,null,null,null,null,null,""]
[283,null,null,null,null,null,null,null,null,null,null,null,""]
[284,null,null,null,null,null,null,null,null,null,null,null,""]
[285,null,null,null,null,null,null,null,null,null,null,null,""]
[286,null,null,null,null,null,null,null,null,null,null,null,""]
[287,null,null,null,null,null,null,null,null,null,null,null,""]
[288,null,null,null,null,null,null,null,null,null,null,null,""]
[289,null,null,null,null,null,null,null,null,null,null,null,""]
[290,null,null,null,null,null,null,null,null,null,null,null,""]
[291,null,null,null,null,null,null,null,null,null,null,null,""]
[292,null,null,null,null,null,null,null,null,null,null,null,""]
[293,null,null,null,null,null,null,null,null,null,null,null,""]
[294,null,null,null,null,null,null,null,null,null,null,null,""]
[295,null,null,null,null,null,null,null,null,null,null,null,""]
[296,null,null,null,null,null,null,null,null,null,null,null,""]
[297,null,null,null,null,null,null,null,null,null,null,null,""]
[298,null,null,null,null,null,null,null,null,null,null,null,""]
[299,null,null,null,null,null,null,null,null,null,null,null,""]
[300,null,null,null,null,null,null,null,null,null,null,null,""]
[301,null,null,null,null,null,null,null,null,null,null,null,""]
[302,null,null,null,null,null,null,null,null,null,null,null,""]
[303,null,null,null,null,null,null,null,null,null,null,null,""]
[304,null,null,null,null,null,null,null,null,null,null,null,""]
[305,null,null,null,null,null,null,null,null,null,null,null,""]
[306,null,null,null,null,null,null,null,null,null,null,null,""]
[307,null,null,null,null,null,null,null,null,null,null,null,""]
[308,null,null,null,null,null,null,null,null,null,null,null,""]
[309,null,null,null,null,null,null,null,null,null,null,null,""]
[310,null,null,null,null,null,null,null,null,null,null,null,""]
[311,null,null,null,null,null,null,null,null,null,null,null,""]
[312,null,null,null,null,null,null,null,null,null,null,null,""]
[313,null,null,null,null,null,null,null,null,null,null,null,""]
[314,null,null,null,null,null,null,null,null,null,null,null,""]
[315,null,null,null,null,null,null,null,null,null,null,null,""]
[316,null,null,null,null,null,null,null,null,null,null,null,""]
[317,null,null,null,null,null,null,null,null,null,null,null,""]
[318,null,null,null,null,null,null,null,null,null,null,null,""]
[319,null,null,null,null,null,null,null,null,null,null,null,""]
[320,null,null,null,null,null,null,null,null,null,null,null,""]
[321,null,null,null,null,null,null,null,null,null,null,null,""]
[322,null,null,null,null,null,null,null,null,null,null,null,{"$f":"IF(AND(J325=\"\",L325=\"\"),\"\",J325*0.003437+L325*0.025905)","v":""}]
[323,null,null,null,null,null,null,null,null,null,null,null,""]
[324,null,null,null,null,null,null,null,null,null,null,null,""]
[325,null,null,null,null,null,null,null,null,null,null,null,""]
[326,null,null,null,null,null,null,null,null,null,null,null,""]
[327,null,null,null,null,null,null,null,null,null,null,null,""]
[328,null,null,null,null,null,null,null,null,null,null,null,""]
[329,null,null,null,null,null,null,null,null,null,null,null,""]
[330,null,null,null,null,null,null,null,null,null,null,null,""]
[331,null,null,null,null,null,null,null,null,null,null,null,""]
[332,null,null,null,null,null,null,null,null,null,null,null,""]
[333,null,null,null,null,null,null,null,null,null,null,null,""]
[334,null,null,null,null,null,null,null,null,null,null,null,""]
[335,null,null,null,null,null,null,null,null,null,null,null,""]
[336,null,null,null,null,null,null,null,null,null,null,null,""]
[337,null,null,null,null,null,null,null,null,null,null,null,""]
[338,null,null,null,null,null,null,null,null,null,null,null,""]
[339,null,null,null,null,null,null,null,null,null,null,null,""]
[340,null,null,null,null,null,null,null,null,null,null,null,""]
[341,null,null,null,null,null,null,null,null,null,null,null,""]
[342,null,null,null,null,null,null,null,null,null,null,null,""]
[343,null,null,null,null,null,null,null,null,null,null,null,""]
[344,null,null,null,null,null,null,null,null,null,null,null,""]
[345,null,null,null,null,null,null,null,null,null,null,null,""]
[346,null,null,null,null,null,null,null,null,null,null,null,""]
[347,null,null,null,null,null,null,null,null,null,null,null,""]
[348,null,null,null,null,null,null,null,null,null,null,null,""]
[349,null,null,null,null,null,null,null,null,null,null,null,""]
[350,null,null,null,null,null,null,null,null,null,null,null,""]
[351,null,null,null,null,null,null,null,null,null,null,null,""]
[352,null,null,null,null,null,null,null,null,null,null,null,""]
[353,null,null,null,null,null,null,null,null,null,null,null,""]
[354,null,null,null,null,null,null,null,null,null,null,null,""]
[355,null,null,null,null,null,null,null,null,null,null,null,""]
[356,null,null,null,null,null,null,null,null,null,null,null,""]
[357,null,null,null,null,null,null,null,null,null,null,null,""]
[358,null,null,null,null,null,null,null,null,null,null,null,""]
[359,null,null,null,null,null,null,null,null,null,null,null,""]
[360,null,null,null,null,null,null,null,null,null,null,null,""]
[361,null,null,null,null,null,null,null,null,null,null,null,""]
[362,null,null,null,null,null,null,null,null,null,null,null,""]
[363,null,null,null,null,null,null,null,null,null,null,null,""]
[364,null,null,null,null,null,null,null,null,null,null,null,""]
[365,null,null,null,null,null,null,null,null,null,null,null,""]
[366,null,null,null,null,null,null,null,null,null,null,null,""]
[367,null,null,null,null,null,null,null,null,null,null,null,""]
[368,null,null,null,null,null,null,null,null,null,null,null,""]
[369,null,null,null,null,null,null,null,null,null,null,null,""]
[370,null,null,null,null,null,null,null,null,null,null,null,""]
[371,null,null,null,null,null,null,null,null,null,null,null,""]
[372,null,null,null,null,null,null,null,null,null,null,null,""]
[373,null,null,null,null,null,null,null,null,null,null,null,""]
[374,null,null,null,null,null,null,null,null,null,null,null,""]
[375,null,null,null,null,null,null,null,null,null,null,null,""]
[376,null,null,null,null,null,null,null,null,null,null,null,""]
[377,null,null,null,null,null,null,null,null,null,null,null,""]
[378,null,null,null,null,null,null,null,null,null,null,null,""]
[379,null,null,null,null,null,null,null,null,null,null,null,""]
[380,null,null,null,null,null,null,null,null,null,null,null,""]
[381,null,null,null,null,null,null,null,null,null,null,null,""]
[382,null,null,null,null,null,null,null,null,null,null,null,""]
[383,null,null,null,null,null,null,null,null,null,null,null,""]
[384,null,null,null,null,null,null,null,null,null,null,null,""]
[385,null,null,null,null,null,null,null,null,null,null,null,""]
[386,null,null,null,null,null,null,null,null,null,null,null,{"$f":"IF(AND(J389=\"\",L389=\"\"),\"\",J389*0.003437+L389*0.025905)","v":""}]
[387,null,null,null,null,null,null,null,null,null,null,null,""]
[388,null,null,null,null,null,null,null,null,null,null,null,""]
[389,null,null,null,null,null,null,null,null,null,null,null,""]
[390,null,null,null,null,null,null,null,null,null,null,null,""]
[391,null,null,null,null,null,null,null,null,null,null,null,""]
[392,null,null,null,null,null,null,null,null,null,null,null,""]
[393,null,null,null,null,null,null,null,null,null,null,null,""]
[394,null,null,null,null,null,null,null,null,null,null,null,""]
[395,null,null,null,null,null,null,null,null,null,null,null,""]
[396,null,null,null,null,null,null,null,null,null,null,null,""]
[397,null,null,null,null,null,null,null,null,null,null,null,""]
[398,null,null,null,null,null,null,null,null,null,null,null,""]
[399,null,null,null,null,null,null,null,null,null,null,null,""]
[400,null,null,null,null,null,null,null,null,null,null,null,""]
[401,null,null,null,null,null,null,null,null,null,null,null,""]
[402,null,null,null,null,null,null,null,null,null,null,null,""]
[403,null,null,null,null,null,null,null,null,null,null,null,""]
[404,null,null,null,null,null,null,null,null,null,null,null,""]
[405,null,null,null,null,null,null,null,null,null,null,null,""]
[406,null,null,null,null,null,null,null,null,null,null,null,""]
[407,null,null,null,null,null,null,null,null,null,null,null,""]
[408,null,null,null,null,null,null,null,null,null,null,null,""]
[409,null,null,null,null,null,null,null,null,null,null,null,""]
[410,null,null,null,null,null,null,null,null,null,null,null,""]
[411,null,null,null,null,null,null,null,null,null,null,null,""]
[412,null,null,null,null,null,null,null,null,null,null,null,""]
[413,null,null,null,null,null,null,null,null,null,null,null,""]
[414,null,null,null,null,null,null,null,null,null,null,null,""]
[415,null,null,null,null,null,null,null,null,null,null,null,""]
[416,null,null,null,null,null,null,null,null,null,null,null,""]
[417,null,null,null,null,null,null,null,null,null,null,null,""]
[418,null,null,null,null,null,null,null,null,null,null,null,""]
[419,null,null,null,null,null,null,null,null,null,null,null,""]
[420,null,null,null,null,null,null,null,null,null,null,null,""]
[421,null,null,null,null,null,null,null,null,null,null,null,""]
[422,null,null,null,null,null,null,null,null,null,null,null,""]
[423,null,null,null,null,null,null,null,null,null,null,null,""]
[424,null,null,null,null,null,null,null,null,null,null,null,""]
[425,null,null,null,null,null,null,null,null,null,null,null,""]
[426,null,null,null,null,null,null,null,null,null,null,null,""]
[427,null,null,null,null,null,null,null,null,null,null,null,""]
[428,null,null,null,null,null,null,null,null,null,null,null,""]
[429,null,null,null,null,null,null,null,null,null,null,null,""]
[430,null,null,null,null,null,null,null,null,null,null,null,""]
[431,null,null,null,null,null,null,null,null,null,null,null,""]
[432,null,null,null,null,null,null,null,null,null,null,null,""]
[433,null,null,null,null,null,null,null,null,null,null,null,""]
[434,null,null,null,null,null,null,null,null,null,null,null,""]
[435,null,null,null,null,null,null,null,null,null,null,null,""]
[436,null,null,null,null,null,null,null,null,null,null,null,""]
[437,null,null,null,null,null,null,null,null,null,null,null,""]
[438,null,null,null,null,null,null,null,null,null,null,null,""]
[439,null,null,null,null,null,null,null,null,null,null,null,""]
[440,null,null,null,null,null,null,null,null,null,null,null,""]
[441,null,null,null,null,null,null,null,null,null,null,null,""]
[442,null,null,null,null,null,null,null,null,null,null,null,""]
[443,null,null,null,null,null,null,null,null,null,null,null,""]
[444,null,null,null,null,null,null,null,null,null,null,null,""]
[445,null,null,null,null,null,null,null,null,null,null,null,""]
[446,null,null,null,null,null,null,null,null,null,null,null,""]
[447,null,null,null,null,null,null,null,null,null,null,null,""]
[448,null,null,null,null,null,null,null,null,null,null,null,""]
[449,null,null,null,null,null,null,null,null,null,null,null,""]
[450,null,null,null,null,null,null,null,null,null,null,null,{"$f":"IF(AND(J453=\"\",L453=\"\"),\"\",J453*0.003437+L453*0.025905)","v":""}]
[451,null,null,null,null,null,null,null,null,null,null,null,""]
[452,null,null,null,null,null,null,null,null,null,null,null,""]
[453,null,null,null,null,null,null,null,null,null,null,null,""]
[454,null,null,null,null,null,null,null,null,null,null,null,""]
[455,null,null,null,null,null,null,null,null,null,null,null,""]
[456,null,null,null,null,null,null,null,null,null,null,null,""]
[457,null,null,null,null,null,null,null,null,null,null,null,""]
[458,null,null,null,null,null,null,null,null,null,null,null,""]
[459,null,null,null,null,null,null,null,null,null,null,null,""]
[460,null,null,null,null,null,null,null,null,null,null,null,""]
[461,null,null,null,null,null,null,null,null,null,null,null,""]
[462,null,null,null,null,null,null,null,null,null,null,null,""]
[463,null,null,null,null,null,null,null,null,null,null,null,""]
[464,null,null,null,null,null,null,null,null,null,null,null,""]
[465,null,null,null,null,null,null,null,null,null,null,null,""]
[466,null,null,null,null,null,null,null,null,null,null,null,""]
[467,null,null,null,null,null,null,null,null,null,null,null,""]
[468,null,null,null,null,null,null,null,null,null,null,null,""]
[469,null,null,null,null,null,null,null,null,null,null,null,""]
[470,null,null,null,null,null,null,null,null,null,null,null,""]
[471,null,null,null,null,null,null,null,null,null,null,null,""]
[472,null,null,null,null,null,null,null,null,null,null,null,""]
[473,null,null,null,null,null,null,null,null,null,null,null,""]
[474,null,null,null,null,null,null,null,null,null,null,null,""]
[475,null,null,null,null,null,null,null,null,null,null,null,""]
[476,null,null,null,null,null,null,null,null,null,null,null,""]
[477,null,null,null,null,null,null,null,null,null,null,null,""]
[478,null,null,null,null,null,null,null,null,null,null,null,""]
[479,null,null,null,null,null,null,null,null,null,null,null,""]
[480,null,null,null,null,null,null,null,null,null,null,null,""]
[481,null,null,null,null,null,null,null,null,null,null,null,""]
[482,null,null,null,null,null,null,null,null,null,null,null,""]
[483,null,null,null,null,null,null,null,null,null,null,null,""]
[484,null,null,null,null,null,null,null,null,null,null,null,""]
[485,null,null,null,null,null,null,null,null,null,null,null,""]
[486,null,null,null,null,null,null,null,null,null,null,null,""]
[487,null,null,null,null,null,null,null,null,null,null,null,""]
[488,null,null,null,null,null,null,null,null,null,null,null,""]
[489,null,null,null,null,null,null,null,null,null,null,null,""]
[490,null,null,null,null,null,null,null,null,null,null,null,""]
[491,null,null,null,null,null,null,null,null,null,null,null,""]
[492,null,null,null,null,null,null,null,null,null,null,null,""]
[493,null,null,null,null,null,null,null,null,null,null,null,""]
[494,null,null,null,null,null,null,null,null,null,null,null,""]
[495,null,null,null,null,null,null,null,null,null,null,null,""]
[496,null,null,null,null,null,null,null,null,null,null,null,""]
[497,null,null,null,null,null,null,null,null,null,null,null,""]
[498,null,null,null,null,null,null,null,null,null,null,null,""]
[499,null,null,null,null,null,null,null,null,null,null,null,""]
[500,null,null,null,null,null,null,null,null,null,null,null,""]

{"sheet":"Terms and Conditions","index":4,"n_rows":26,"n_cols":1,"rows_kept":26,"cut":false,"hidden":false,"merged":[]}
["NJ Large Energy Users Program"]
[]
["Program Terms and Conditions"]
["Definitions:"]
["Administrator – New Jersey Board of Public Utilities, Office of Clean Energy"]
["Assignment – The Participating Customer may assign Program Incentive payments to a specified vendor."]
["Campus Exemption - For campus facilities, the 400kW threshold shall be met on a campus-wide level (i.e. total demand of campus). Any number of buildings may be included in the Energy Efficiency Plan."]
["Eligibility Process – A customer, or an agent (contractor/vendor) authorized by a Customer, must submit a properly completed application package. A complete application package should include the application completed and signed in addition to all information requested for each facility per the table provided on the first page of the application. If the table does not provide sufficient space to enter information, please submit a separate attachment with the application along with a copy of the data in electronic format (writeable disc, flash drive). Additional appendices may be attached as needed. The Program Manager will review the application package to determine if all information is complete. In the event the application is not complete or additional information is needed to complete the application, the Program Manager will request this information from the primary point of contact as listed by the entity. To qualify, eligible entities must have contributed a minimum of $300,000 into New Jersey’s Clean Energy Program fund in fiscal year 2017 (July 2016 through June 2017) (aggregate of all buildings/sites). Entities may not use fiscal year 2016 contribution to meet the minimum contribution requirement. Incentive banking is only available to entities who are or have not participated in the fiscal year 2017 LEU program.   In order to be considered for incentives, the average billed peak demand of all facilities submitted in the Draft Energy Efficiency Plan (DEEP) and Final Energy Efficiency Plan (FEEP) must meet or exceed 400 kW and/or 4,000 DTh. Projects with a contract threshold of $15,444 are required to pay no less than prevailing wage rate to workers employed in the performance of any construction undertaken in connection with Board of Public Utilities financial assistance, or undertaken to fulfill any condition of receiving Board of Public Utilities financial assistance, including the performance of any contract to construct, renovate or otherwise prepare a facility, the operations of which are necessary for the receipt of Board of Public Utilities financial assistance. By submitting an application, or accepting program incentives, applicant agrees to adhere to New Jersey Prevailing Wage requirements, as applicable."]
["Endorsement – The Program Manager and Administrator do not endorse, support or recommend any particular manufacturer, product or system design in promoting this Program."]
["Energy-Efficient Measures – Any device eligible to receive a Program Incentive payment through the NJ Clean Energy Commercial and Industrial Program."]
["Entity - Defined as (1) Public: having distinct and separate budgetary authority; (2) Public Schools: having distinct and separate budgetary authority; (3) Private: Non-residential companies including all related subsidiaries and affiliates regardless of separate EIN numbers or locations within New Jersey. Consistent with DOCKET NO. EOO7030203."]
["Limitation of Liability – By virtue of participating in this Program, Participating Customers agree to waive any and all claims or damages against the Program Manager or the Administrator, except the receipt of the Program Incentive. Participating Customers agree that the Program Manager’s and Administrator’s liability, in connection with this Program, is limited to paying the Program Incentive specified. Under no circumstances shall the Program Manager, its representatives, or subcontractors, or the Administrator, be liable for any lost profits, special, punitive, consequential or incidental damages or for any other damages or claims connected with or resulting from participation in this Program. Further, any liability attributed to the Program Manager under this Program shall be individual, and not joint and/or several."]
["Loc ID - Location or premise ID assigned to a particular facility by the utility."]
["Program Manager – TRC Energy Services."]
["NJ Clean Energy Contribution Calculation - The following rates are to be used in order to calculate the total NJ Clean Energy fund contribution for fiscal year 2017 (July 2016 through June 2017). -$0.025905/therm and $0.003437/kWh. The same rates will apply for entities eligible to bank additional contribution for fiscal year 2016 (July 2015 through June 2016). "]
["New Jersey Utilities – The regulated electric and/or gas utilities in the State of New Jersey. They are: Atlantic City Electric, Jersey Central Power & Light, Rockland Electric Company, New Jersey Natural Gas, Elizabethtown Gas, PSE&G, and South Jersey Gas."]
["Participating Customers – Those non-residential electric and/or gas service customers of the New Jersey Utilities who participate in this Program."]
["Participating Customer’s Certification – Participating Customer certifies that he/she purchased and installed the equipment listed in their application at their defined New Jersey location. Participating Customer agrees that all information is true and that he/she has conformed to all of the Program and equipment requirements listed in the application."]
["Program – The Commercial and Industrial Energy-Efficient Construction Program offered herein by the New Jersey Board of Public Utilities, Office of Clean Energy pursuant to state regulatory approval under the New Jersey Electric Discount and Energy Competition Act, NJSA 48:3-49, et seq."]
["Program Offer – Program Incentives are available to non-residential retail electric and/or gas service customers of the New Jersey Utilities identified above."]
["Tax Liability – The Program Manager will not be responsible for any tax liability that may be imposed on any Participating Customer as a result of the payment of Program Incentives. All Participating Customers must supply their Federal Tax Identification number or social security number to the Program Manager on the application form in order to receive a Program Incentive. In addition, Participating Customers must also provide a Tax Clearance Form (Business Assistance or Incentive Clearance Certificate) that is dated within 180 days of equipment installation."]
["Termination – The New Jersey Board of Public Utilities reserves the right to extend, modify (this includes modification of Program Incentive levels) or terminate this Program without prior or further notice."]
["Warranties – THE PROGRAM MANAGER AND ADMINISTRATOR DO NOT WARRANT THE PERFORMANCE OF INSTALLED EQUIPMENT, AND/OR SERVICES RENDERED AS PART OF THIS PROGRAM, EITHER EXPRESSLY OR IMPLICITLY. NO WARRANTIES OR REPRESENTATIONS OF ANY KIND, WHETHER STATUTORY, EXPRESSED, OR IMPLIED, INCLUDING, WITHOUT LIMITATIONS, WARRANTIES OF MERCHANTABILITY OR FITNESS FOR A PARTICULAR PURPOSE REGARDING EQUIPMENT OR SERVICES PROVIDED BY A MANUFACTURER OR VENDOR. CONTACT YOUR VENDOR/SERVICES PROVIDER FOR DETAILS REGARDING PERFORMANCE AND WARRANTIES."]
["Acknowledgement – I have read, understood and am in compliance with all rules and regulations concerning this incentive program. I certify that all information provided is correct to the best of my knowledge, and I give the Program Manager permission to share my records with the New Jersey Board of Public Utilities, and contractors it selects to manage, coordinate or evaluate the NJ Large Energy Users Program. Additionally, I allow reasonable access to my property to inspect the installation and performance of the technologies and installations that are eligible for incentives under the guidelines of New Jersey’s Clean Energy Program."]
["Visit our website: NJCleanEnergy.com"]
["  *Incentives/Requirements subject to change."]